[Event "1st Serbian League 2022"]
[Site "Vrnjacka Banja"]
[Date "2022.09.21"]
[Round "2.32"]
[White "Stojanovic, Mihajlo"]
[Black "Sedlak, Nikola"]
[Result "1/2-1/2"]
[WhiteElo "2494"]
[BlackElo "2466"]
[Annotator "TA"]
[PlyCount "33"]
[EventDate "2022.09.20"]
[EventType "team-tourn"]
[EventCountry "SRB"]
[SourceTitle "playchess.com"]
[Source "ChessBase"]
[SourceQuality "1"]
[TimeControl "40/5400+30:1800+30"]

{[%evp 16,18,17,12,23]} 1. d4 {[%emt 0:00:03]} d5 {[%emt 0:00:22]} 2. c4 {[%emt 0:00:07]} c6 {[%emt 0:00:06]} 3. cxd5 {[%emt 0:00:05]} cxd5 {[%emt 0:00:08]} 4. Nf3 {[%emt 0:00:04]} Nc6 {[%emt 0:00:30]} 5. Nc3 {[%emt 0:00:07]} Nf6 {[%emt 0:00:16]} 6. Bf4 {[%emt 0:00:07]} Ne4 {[%emt 0:04:02]} 7. e3 {[%emt 0:00:13]} Nxc3 {[%emt 0:00:42]} 8. bxc3 {[%emt 0:00:06]} e6 {[%emt 0:00:25]} 9. Bd3 {[%emt 0:00:06]} Bd6 {[%emt 0:00:40] [#] An uneventful encounter. D13: Slav Defence: Exchange variation without ...Bf5.} {Predecessor:} 10. Bg3 $146 h6 11. O-O O-O 12. Nd2 b6 13. c4 Bxg3 14. hxg3 dxc4 15. Nxc4 Bb7 16. Rc1 Rc8 17. Bb1 {0-1 (50) Xiong,J (2679)-Smirnov,A (2567) Chess.com INT 2019} 1/2-1/2

[Event "1st Serbian League 2022"]
[Site "Vrnjacka Banja"]
[Date "2022.09.21"]
[Round "2.33"]
[White "Popovic, Dusan"]
[Black "Pezelj, Novak"]
[Result "1/2-1/2"]
[ECO "C00"]
[WhiteElo "2486"]
[BlackElo "2496"]
[Annotator "TA"]
[PlyCount "75"]
[EventDate "2022.09.20"]
[EventType "team-tourn"]
[EventCountry "SRB"]
[SourceTitle "playchess.com"]
[Source "ChessBase"]
[SourceQuality "1"]
[TimeControl "40/5400+30:1800+30"]

{[%evp 10,75,10,0,14,-18,-18,-24,-23,-58,-53,-57,-11,-51,0,-10,30,17,28,35,32,35,34,35,37,26,22,14,27,0,0,0,0,0,0,0,0,-13,39,0,72,75,100,76,79,80,82,60,62,29,116,0,66,0,106,29,39,39,75,54,45,0,68,0,52,0,68,0]} 1. e4 {[%emt 0:00:04]} e6 {[%emt 0:00:15]} 2. d3 {[%emt 0:02:16]} d5 {[%emt 0:02:16]} 3. Nd2 {[%emt 0:00:06]} Nf6 {[%emt 0:06:54]} 4. Ngf3 {[%emt 0:00:56]} b6 {[%emt 0:08:19]} 5. c3 {[%emt 0:00:38]} Bb7 {[%emt 0:00:57]} 6. Qa4+ {[%emt 0:09:10]} Nfd7 {[%emt 0:05:28] C00: French: Unusual White 2nd moves.} 7. e5 {[%emt 0:20:46]} c5 {[%emt 0:08:12]} 8. d4 {[%emt 0:04:34] [#]} Nc6 $146 {[%emt 0:03:13] Black has an edge.} ({Predecessor:} 8... Bc6 9. Qd1 Bb7 10. Be2 Nc6 11. O-O f5 12. Nb3 Be7 13. c4 Nb4 14. a3 dxc4 15. axb4 cxb3 16. Qxb3 {1-0 (34) Hawkes,R (2365)-Baragar,F (2280) Ottawa 1984}) 9. a3 {[%emt 0:10:54]} Be7 {[%emt 0:05:49]} 10. Bb5 {[%emt 0:04:05]} Rc8 {[%emt 0:02:57]} (10... Qc7 $15) 11. O-O {[%emt 0:03:16]} O-O {[%emt 0:00:07][%cal Oa7a6]} 12. Re1 {[%emt 0:03:03]} Re8 {[%emt 0:20:16][%cal Oa7a6]} 13. Nf1 {[%emt 0:00:35]} f6 {[%emt 0:00:38]} 14. exf6 {[%emt 0:02:28]} Bxf6 {[%emt 0:00:21][%cal Oa7a6]} 15. Bf4 {[%emt 0:00:49]} a6 {[%emt 0:06:34]} 16. Bxc6 {[%emt 0:01:15]} Bxc6 {[%emt 0:05:11]} 17. Qd1 {[%emt 0:00:07]} ({But not} 17. Qxa6 $2 c4 18. Qa7 Re7 $19) 17... Qe7 {[%emt 0:00:30]} 18. Ne5 {[%emt 0:05:51]} Bb5 {[%emt 0:03:49]} 19. Ng3 {[%emt 0:04:56]} cxd4 {[%emt 0:01:24]} 20. cxd4 {[%emt 0:00:16]} Nxe5 {[%emt 0:01:02]} 21. Bxe5 {[%emt 0:00:23]} Bxe5 {[%emt 0:00:52]} 22. Rxe5 {[%emt 0:00:24]} Qc7 {[%emt 0:02:29]} 23. Nh5 {[%emt 0:18:00]} Re7 {[%emt 0:12:29]} ({Better is} 23... Qc2 $11) 24. Qe1 {[%emt 0:01:38]} (24. Nf4 {with more complications.} Qc2 25. b3 Rf7 26. g3) 24... Bd7 {[%emt 0:01:25]} (24... Rf7 $11) 25. Nf4 $16 {[%emt 0:01:35] [#] Strongly threatening Nxd5.} Qd6 {[%emt 0:00:49]} 26. Qd2 {[%emt 0:01:11]} Rf7 {[%emt 0:00:18]} 27. Rae1 {[%emt 0:01:11][%cal Rf4e6]} Rf6 {[%emt 0:00:14]} 28. f3 {[%emt 0:02:03]} Rc4 {[%emt 0:00:42]} 29. Nh5 {[%emt 0:01:40]} Rg6 {[%emt 0:00:42]} (29... Rf7 $11) 30. Nf4 {[%emt 0:00:31]} (30. Rc1 $16) 30... Rf6 $14 {[%emt 0:00:02]} 31. Nh5 {[%emt 0:00:08]} Rg6 {[%emt 0:00:01]} 32. b3 {[%emt 0:00:55]} ({White should play} 32. Rc1 $16) 32... Rc6 $11 {[%emt 0:00:11]} 33. a4 {[%emt 0:00:15]} a5 {[%emt 0:00:19]} 34. Nf4 {[%emt 0:00:43] White is more active.} Rf6 {[%emt 0:00:00]} 35. Nh5 {[%emt 0:00:21]} Rg6 {[%emt 0:00:01]} (35... Rf5 $2 36. Rxf5 exf5 37. Qg5 $18) 36. Nf4 {[%emt 0:00:46]} Rf6 {[%emt 0:00:01]} 37. Nh5 {[%emt 0:00:35]} Rg6 {[%emt 0:00:01]} (37... Rf5 $2 38. Rxf5 exf5 39. Qg5 $18) 38. Nf4 {[%emt 0:00:16] Weighted Error Value: White=0.26 (precise) /Black=0.16 (very precise)} (38. Rc1 $14) 1/2-1/2

[Event "1st Serbian League 2022"]
[Site "Vrnjacka Banja"]
[Date "2022.09.21"]
[Round "2.34"]
[White "Ratkovic, Milovan"]
[Black "Boskovic, Drasko"]
[Result "1/2-1/2"]
[ECO "D80"]
[WhiteElo "2411"]
[BlackElo "2415"]
[Annotator "TA"]
[PlyCount "187"]
[EventDate "2022.09.20"]
[EventType "team-tourn"]
[EventCountry "SRB"]
[SourceTitle "playchess.com"]
[Source "ChessBase"]
[SourceQuality "1"]
[TimeControl "40/5400+30:1800+30"]

{[%evp 9,187,24,33,28,58,83,68,68,70,71,76,77,78,60,66,71,81,56,50,31,41,14,12,29,20,11,60,0,3,20,22,18,4,13,21,10,33,0,0,0,0,-90,-83,-94,-82,-64,-8,-116,-97,-84,-27,-265,-266,-267,-270,-266,-277,-264,-271,-273,-265,-278,-269,-270,-283,-275,-264,-539,-526,-706,-666,-708,-679,-719,-719,-719,-718,-713,-635,-711,-700,-711,-711,-711,-711,-711,-711,-670,-443,-854,-842,-799,-796,-776,-672,-762,-685,-600,-434,-408,-266,-266,-266,-266,-266,-356,-266,-266,-266,-266,-266,-266,-266,-266,-266,-482,-266,-266,-266,-266,-266,-266,-266,-266,-266,-266,-266,-266,0,-266,-266,-266,-266,-266,-266,-266,-266,-266,-266,-266,-266,-266,-266,-266,-266,-266,-266,-266,0,-266,-266,-266,-266,-266,-266,-266,-266,-266,-266,-266,-8,-14,-9,-10,0,-266,-258,-266,-266,-266,-266,-266,0,0,0,0,0,0,0,0]} 1. d4 {[%emt 0:00:07]} Nf6 {[%emt 0:00:03]} 2. c4 {[%emt 0:00:47][%cal Bc2c4,Bc4d5][%mdl 32]} g6 {[%emt 0:00:15]} 3. Nc3 {[%emt 0:00:24]} d5 {[%emt 0:00:05]} 4. Bg5 {[%emt 0:00:54]} Bg7 {[%emt 0:00:12]} 5. Bxf6 {[%emt 0:00:24]} Bxf6 {[%emt 0:00:05]} 6. cxd5 {[%emt 0:00:11] D80: Grünfeld: Unusual White 4th moves and 4 Bg5.} O-O {[%emt 0:00:17][%cal Oc7c5]} 7. e3 {[%emt 0:03:26]} c6 {[%emt 0:00:05]} 8. Bc4 {[%emt 0:03:00][%cal Bf1c4,Bc4b3,Bb3d5][%mdl 32] White is slightly better.} b5 {[%emt 0:16:16]} 9. Bb3 {[%emt 0:00:57] [#]} a5 $146 {[%emt 0:01:03]} ({Predecessor:} 9... b4 10. Ne4 Bg7 11. dxc6 Nxc6 12. Ne2 e5 13. d5 Na5 14. Nc5 Qb6 15. Rc1 Rd8 {1-0 (58) Turova,I (2413)-Gandrud,V (2330) Bergen 2017}) 10. dxc6 {[%emt 0:11:11]} Nxc6 {[%emt 0:07:18]} 11. Nge2 {[%emt 0:03:24]} a4 {[%emt 0:21:07]} 12. Bd5 {[%emt 0:03:34]} Ra6 {[%emt 0:09:13]} 13. a3 {[%emt 0:04:43]} e5 {[%emt 0:05:45]} 14. O-O {[%emt 0:07:13]} exd4 {[%emt 0:01:25]} 15. exd4 {[%emt 0:01:18]} (15. Nxd4 Nxd4 16. exd4 Rd6 $11) 15... Bg4 {[%emt 0:03:40] This bishop pair is nice.} 16. f3 {[%emt 0:01:23]} Bf5 {[%emt 0:00:19][%cal Oc6d4]} 17. Kh1 {[%emt 0:10:48]} Qb6 {[%emt 0:09:31]} (17... Rb6 $11) 18. Ne4 {[%emt 0:06:04]} (18. Bxc6 $14 Qxc6 19. Rc1) 18... Bg7 $11 {[%emt 0:01:33][%cal Rc6d4]} ({But not} 18... Bxe4 19. fxe4 Bg7 20. Rc1 $18) 19. Bxc6 {[%emt 0:04:35]} Qxc6 {[%emt 0:00:10]} 20. Rc1 {[%emt 0:00:24]} Qb6 {[%emt 0:03:12]} 21. Qd2 {[%emt 0:00:44]} Rd8 {[%emt 0:01:01]} 22. Rfd1 {[%emt 0:01:37]} Ra7 {[%emt 0:00:41]} 23. Qb4 {[%emt 0:03:20]} Bf8 {[%emt 0:04:18]} 24. Nc5 {[%emt 0:03:46]} Bh6 {[%emt 0:00:51]} 25. Nc3 {[%emt 0:07:48]} (25. Rc3 $11) 25... Bxc1 $17 {[%emt 0:01:09]} 26. Rxc1 {[%emt 0:00:04]} Qf6 {[%emt 0:09:02]} 27. d5 {[%emt 0:07:33]} Re7 {[%emt 0:03:12]} (27... Rc7 $15) 28. N5e4 {[%emt 0:05:28]} (28. Rg1 $11 {keeps the balance.}) 28... Bxe4 {[%emt 0:00:13]} 29. Nxe4 {[%emt 0:00:04]} Qe5 $40 {[%emt 0:01:15][%mdl 128] Black attacks.} (29... Qf4 $17 30. Rg1 Qe5) 30. Qxb5 $2 {[%emt 0:06:00]} (30. d6 $11 Ree8 31. g4) 30... f5 $19 {[%emt 0:00:40]} 31. Nc3 {[%emt 0:01:41] [#]} Rb8 $1 {[%emt 0:01:06][%cal Bd8b8,Bb8b2,Bb2d2][%mdl 32]} 32. Qc4 {[%emt 0:02:36] [#]} Qe1+ $3 {[%emt 0:00:25][%mdl 512]} 33. Qf1 {[%emt 0:00:09]} Qxf1+ {[%emt 0:00:05]} 34. Rxf1 {[%emt 0:00:03]} Rxb2 {[%emt 0:00:07]} 35. Nxa4 {[%emt 0:01:13][%mdl 4096] Endgame KRR-KRN} Rd2 {[%emt 0:01:05]} 36. Nb6 {[%emt 0:00:52]} Rb7 {[%emt 0:00:26][%mdl 64] Deflection} 37. Nc4 {[%emt 0:00:37]} Rxd5 {[%emt 0:00:09]} 38. h3 $2 {[%emt 0:00:29]} (38. Kg1 {is a better defense.}) 38... Rc7 {[%emt 0:00:21]} 39. Nb2 {[%emt 0:00:38]} Rc2 {[%emt 0:00:54] Prevents Rf2.} 40. Nd1 {[%emt 0:00:21]} f4 {[%emt 0:01:06] Prevents Ne3. Strongly threatening ...Rc1.} 41. Nf2 {[%emt 0:30:31]} Rdd2 {[%emt 0:30:08]} 42. Kg1 {[%emt 0:00:00]} Ra2 {[%emt 0:00:00]} 43. a4 {[%emt 0:00:00]} Re2 {[%emt 0:00:00]} 44. a5 {[%emt 0:00:00]} Rec2 {[%emt 0:00:00]} 45. a6 {[%emt 0:00:00]} Rxa6 {[%emt 0:00:00]} 46. Ne4 {[%emt 0:00:00]} Raa2 {[%emt 0:00:00]} 47. Rf2 {[%emt 0:00:00]} Rxf2 {[%emt 0:00:00]} 48. Nxf2 {[%emt 0:00:00] KR-KN} Kf7 {[%emt 0:00:00]} 49. Nd3 {[%emt 0:00:00]} (49. h4 $142) 49... Ra4 {[%emt 0:00:00]} 50. Kh2 {[%emt 0:00:00]} Kf6 {[%emt 0:00:00]} 51. h4 {[%emt 0:00:00]} Kf5 {[%emt 0:00:00]} 52. Kh3 {[%emt 0:00:00]} Ra1 {[%emt 0:00:00][%cal Ra1h1]} 53. Kh2 {[%emt 0:00:00] Inhibits Rh1+.} Rd1 {[%emt 0:00:00]} 54. Nf2 {[%emt 0:00:00]} Rd4 {[%emt 0:00:00] Hoping for ...Rc4.} 55. Nh3 {[%emt 0:00:00]} Ke5 {[%emt 0:00:00]} 56. Ng5 {[%emt 0:00:00]} Rd7 {[%emt 0:00:00]} 57. Kh3 {[%emt 0:00:00]} h5 {[%emt 0:00:00]} 58. Kh2 {[%emt 0:00:00]} Kd4 {[%emt 0:00:00]} 59. Ne4 {[%emt 0:00:00]} Ke3 {[%emt 0:00:00]} 60. Ng5 {[%emt 0:00:00]} Rd4 {[%emt 0:00:00]} 61. Ne6 {[%emt 0:00:00]} Ra4 {[%emt 0:00:00]} 62. Nf8 $2 {[%emt 0:00:00]} (62. Kg1) 62... Ra6 {[%emt 0:00:00]} (62... Ra5 $142 63. Ne6 Rd5) 63. Nh7 {[%emt 0:00:00]} Ra5 {[%emt 0:00:00] Threatens to win with ...Ke2.} 64. Nf6 {[%emt 0:01:36]} Kf2 {[%emt 0:00:00] aiming for ...Kf1.} 65. Ne4+ {[%emt 0:00:58]} Kf1 {[%emt 0:00:00]} 66. Nd2+ {[%emt 0:00:10]} Ke2 {[%emt 0:00:00]} 67. Ne4 {[%emt 0:00:12]} Ra8 {[%emt 0:00:00]} 68. Kg1 {[%emt 0:01:05]} Ra5 $2 {[%emt 0:00:00]} (68... Ra1+ $19 69. Kh2 Kf1 70. Nd2+ Kf2 71. Ne4+ Ke2) 69. Nc3+ $2 {[%emt 0:01:02][%mdl 8192]} (69. Kh2 $11 {and White is okay.} Ke3 70. Kh3) 69... Kd3 {[%emt 0:00:00]} 70. Ne4 {[%emt 0:00:06]} Ra3 {[%emt 0:00:00]} 71. Nf2+ {[%emt 0:00:49]} Ke3 {[%emt 0:00:12] ( -> ...Ra1+)} 72. Nh3 {[%emt 0:01:24]} Ra4 {[%emt 0:03:08]} 73. Kh2 {[%emt 0:00:43]} Ra5 {[%emt 0:01:39]} 74. Kg1 {[%emt 0:00:14]} Rb5 {[%emt 0:00:27]} 75. Kh2 {[%emt 0:00:23]} Rf5 {[%emt 0:00:07]} 76. Kg1 {[%emt 0:00:54]} Ke2 {[%emt 0:00:06]} 77. Kh1 {[%emt 0:00:40]} Kf1 {[%emt 0:04:22]} 78. Kh2 {[%emt 0:00:11]} Ke2 $2 {[%emt 0:05:22]} ({Black should play} 78... Rf6 $19 {And now ...Rf8 would win.} 79. Kh1 Ke2) 79. Kg1 $2 {[%emt 0:00:07][%mdl 8192]} (79. Kh1 $1 $11 Ke3 80. Ng5) 79... Ke3 {[%emt 0:00:47]} 80. Kh2 {[%emt 0:00:15]} Rd5 {[%emt 0:00:16]} 81. Kg1 {[%emt 0:00:26]} Rd1+ {[%emt 0:00:16]} 82. Kh2 {[%emt 0:00:06]} Rf1 {[%emt 0:00:05]} 83. Ng5 {[%emt 0:00:46]} Rf2 {[%emt 0:00:27]} 84. Kg1 {[%emt 0:02:31]} Ke2 $2 {[%emt 0:00:28]} (84... Ra2 $19 {White must now prevent ...Ra1+.} 85. Kh2 Rd2) 85. Nh3 $11 {[%emt 0:00:42]} Rf1+ {[%emt 0:00:51]} 86. Kh2 {[%emt 0:00:01]} Ke3 $2 {[%emt 0:00:43][%mdl 8192]} (86... Rd1 $11 87. Nxf4+ Ke3 88. Nxg6 Ra1) 87. Ng5 $19 {[%emt 0:00:12]} Ra1 {[%emt 0:00:20]} 88. Nh3 {[%emt 0:00:17]} Rb1 {[%emt 0:00:20]} 89. Ng5 {[%emt 0:00:08]} Rf1 {[%emt 0:00:07]} 90. Nh3 {[%emt 0:00:45]} Rxf3 $2 {[%emt 0:02:34]} 91. gxf3 $11 {[%emt 0:00:07] The position is equal.} Kxf3 {[%emt 0:00:04]} 92. Ng5+ {[%emt 0:02:49]} Kg4 {[%emt 0:00:05]} 93. Ne6 {[%emt 0:00:43]} f3 {[%emt 0:00:29]} 94. Nf8 {[%emt 0:00:56] Weighted Error Value: White=0.36/Black=0.16 (very precise)} 1/2-1/2

[Event "1st Serbian League 2022"]
[Site "Vrnjacka Banja"]
[Date "2022.09.21"]
[Round "2.35"]
[White "Zegarac, Vuk"]
[Black "Ratkovic, Miloje"]
[Result "0-1"]
[ECO "D02"]
[WhiteElo "2336"]
[BlackElo "2498"]
[Annotator "TA"]
[PlyCount "80"]
[EventDate "2022.09.20"]
[EventType "team-tourn"]
[EventCountry "SRB"]
[SourceTitle "playchess.com"]
[Source "ChessBase"]
[SourceQuality "1"]
[TimeControl "40/5400+30:1800+30"]

{[%evp 9,79,11,8,0,0,0,0,0,0,0,0,0,4,0,0,0,6,12,14,0,0,-3,0,-39,-32,-42,-26,-38,-24,-37,-25,-41,-28,-28,-28,-37,-20,-55,-53,-64,-31,-62,-32,-53,-66,-69,-3,-47,-45,-131,-133,-130,-130,-285,-280,-290,-290,-290,-290,-279,0,-165,-162,-442,-362,-357,-352,-577,-474,-1166,-1014,-29999]} 1. d4 {[%emt 0:00:14]} d5 {[%emt 0:00:48]} 2. Nf3 {[%emt 0:00:25]} Nf6 {[%emt 0:01:34]} 3. c3 {[%emt 0:00:26]} e6 {[%emt 0:01:46]} 4. Bf4 {[%emt 0:00:23]} Bd6 {[%emt 0:00:52]} 5. e3 {[%emt 0:00:35]} O-O {[%emt 0:04:21]} 6. Nbd2 {[%emt 0:01:38] D02: 1 d4 d5 2 Nf3 sidelines, including 2...Nf6 3 g3 and 2...Nf6 3 Bf4.} c5 {[%emt 0:00:11]} 7. Bd3 {[%emt 0:05:28]} Bxf4 {[%emt 0:07:12]} 8. exf4 {[%emt 0:00:19] The position is equal.} cxd4 {[%emt 0:00:15]} 9. Nxd4 {[%emt 0:01:09]} Qc7 {[%emt 0:02:04] is cutting edge theory.} 10. g3 {[%emt 0:10:34]} e5 {[%emt 0:03:43]} 11. fxe5 {[%emt 0:02:56]} Qxe5+ {[%emt 0:02:05]} 12. Qe2 {[%emt 0:02:03]} Qd6 {[%emt 0:00:38] [#] Strongly threatening ...Re8.} 13. O-O {[%emt 0:04:46]} Re8 {[%emt 0:02:58]} 14. Qf3 {[%emt 0:03:14]} Bg4 {[%emt 0:03:46]} 15. Qg2 {[%emt 0:02:57] [#]} Nc6 $146 {[%emt 0:03:08]} ({Predecessor:} 15... Qd7 16. Rfe1 Nc6 17. N2b3 Nxd4 18. Nxd4 a6 19. f3 Bh5 20. Qd2 Bg6 21. Bf1 h6 22. Rxe8+ Rxe8 {1-0 (61) Kamsky,G (2655)-Yuan,Q (2373) Chess.com INT 2022}) 16. Nxc6 {[%emt 0:22:37]} bxc6 {[%emt 0:01:32]} 17. f3 {[%emt 0:01:05]} Bd7 {[%emt 0:02:01] Threatening ...Re3.} 18. Qf2 {[%emt 0:01:40] Prevents Re3.} c5 {[%emt 0:02:20]} 19. Rfe1 {[%emt 0:02:59]} Rab8 {[%emt 0:05:01]} 20. b3 {[%emt 0:03:24]} a5 {[%emt 0:01:00]} 21. Rxe8+ {[%emt 0:01:28]} Bxe8 {[%emt 0:02:37]} 22. Re1 {[%emt 0:03:39]} a4 {[%emt 0:01:43]} 23. Bc2 {[%emt 0:04:55]} axb3 {[%emt 0:06:42]} 24. axb3 {[%emt 0:00:29]} Ra8 {[%emt 0:01:47]} 25. Bb1 {[%emt 0:00:43]} g6 {[%emt 0:02:25]} 26. Qe3 {[%emt 0:03:58]} Bd7 {[%emt 0:02:26][%cal Be8d7,Bd7h3,Bh3g4][%mdl 32]} 27. Kg2 {[%emt 0:02:07]} d4 {[%emt 0:07:15] Black is more active.} (27... Kg7 $15) 28. Nc4 {[%emt 0:07:25]} Bh3+ {[%emt 0:04:28]} 29. Kg1 {[%emt 0:02:31]} (29. Kxh3 $15 Qd7+ 30. Bf5 Qxf5+ 31. g4) 29... dxe3 $17 {[%emt 0:03:29]} 30. Nxd6 {[%emt 0:00:14]} Ra1 {[%emt 0:00:34]} 31. c4 $2 {[%emt 0:01:55] [#] Against Nd5} (31. b4 $17) 31... Nd7 $1 $19 {[%emt 0:13:03] White must now prevent ...Ne5.} 32. f4 {[%emt 0:00:58] Prevents Ne5.} Nf6 {[%emt 0:01:39]} 33. Rd1 {[%emt 0:04:48]} Bg4 {[%emt 0:05:24]} 34. Re1 {[%emt 0:00:30]} Bh3 {[%emt 0:05:45]} (34... Bf3 $142 {[%cal Of6e4] Hoping for ...Ne4!} 35. Nxf7 Be4) 35. Rd1 $1 {[%emt 0:00:08]} h5 {[%emt 0:00:15]} 36. Nb5 $2 {[%emt 0:03:11]} (36. Bc2 Ra2 37. Rc1) 36... e2 {[%emt 0:01:06]} 37. Re1 {[%emt 0:00:30]} Ne4 {[%emt 0:00:31]} 38. Na3 $2 {[%emt 0:00:38]} (38. Bxe4 {was worth a try.} Rxe1+ 39. Kf2) 38... Nc3 {[%emt 0:00:28] aiming for ...Bf5.} 39. Rc1 {[%emt 0:00:15]} (39. Nc2 $142 Rxb1 40. Rxb1 Nxb1 41. Kf2) 39... Rxa3 {[%emt 0:00:11]} 40. Rxc3 {[%emt 0:00:16]} e1=Q# {[%emt 0:00:09] Weighted Error Value: White=0.66/Black=0.22 (precise)} 0-1

[Event "1st Serbian League 2022"]
[Site "Vrnjacka Banja"]
[Date "2022.09.21"]
[Round "2.36"]
[White "Dimic, Pavle"]
[Black "Munizaba, Slobodan"]
[Result "1/2-1/2"]
[ECO "E11"]
[WhiteElo "2352"]
[BlackElo "2416"]
[Annotator "TA"]
[PlyCount "95"]
[EventDate "2022.09.20"]
[EventType "team-tourn"]
[EventCountry "SRB"]
[SourceTitle "playchess.com"]
[Source "ChessBase"]
[SourceQuality "1"]
[TimeControl "40/5400+30:1800+30"]

{[%evp 10,95,40,16,12,10,18,13,23,4,28,-25,-22,-11,0,0,0,0,0,0,0,0,0,0,23,20,48,30,19,37,39,28,24,27,67,0,0,0,0,0,29,7,16,16,59,55,50,60,74,70,111,97,110,100,179,188,177,180,368,262,283,268,187,84,87,74,69,33,33,29,37,23,32,17,20,25,39,0,0,0,0,0,0,0,0,0,0,0]} 1. d4 {[%emt 0:00:05]} Nf6 {[%emt 0:00:15]} 2. c4 {[%emt 0:00:27]} e6 {[%emt 0:00:17]} 3. Nf3 {[%emt 0:00:08]} Bb4+ {[%emt 0:00:38]} 4. Bd2 {[%emt 0:00:11]} c5 {[%emt 0:00:32][%cal Bc7c5,Bc5b4][%mdl 32]} 5. Bxb4 {[%emt 0:01:22]} cxb4 {[%emt 0:00:07]} 6. Qd3 {[%emt 0:00:03]} O-O {[%emt 0:01:08] E11: Bogo-Indian.} 7. e4 {[%emt 0:00:22]} d6 {[%emt 0:00:06]} 8. Be2 {[%emt 0:03:54]} b6 {[%emt 0:00:53] [#]} 9. a3 $146 {[%emt 0:21:25]} ({Predecessor:} 9. O-O Bb7 10. Nbd2 a5 11. e5 dxe5 12. Nxe5 Nc6 13. Ndf3 Rc8 14. Rad1 Ne7 15. Nh4 {0-1 (62) Nigalidze,G (2441)-Quparadze,G (2459) Poti 2012}) 9... Bb7 {[%emt 0:02:17]} 10. axb4 {[%emt 0:12:57]} (10. Nfd2 $142) 10... Bxe4 $11 {[%emt 0:05:28]} 11. Qd2 {[%emt 0:04:38]} a5 {[%emt 0:05:56]} 12. b5 {[%emt 0:17:35]} Nbd7 {[%emt 0:09:00]} 13. Nc3 {[%emt 0:02:40]} Bb7 {[%emt 0:02:21]} 14. O-O {[%emt 0:02:31]} Rc8 {[%emt 0:01:44]} 15. b3 {[%emt 0:03:04]} d5 {[%emt 0:07:11]} 16. Ne5 {[%emt 0:12:06]} dxc4 {[%emt 0:10:06] aiming for ...Nxe5.} 17. Nxd7 {[%emt 0:04:38]} Nxd7 {[%emt 0:08:32]} 18. bxc4 {[%emt 0:00:07]} Ne5 {[%emt 0:09:00]} 19. Ra4 {[%emt 0:00:34]} Qd6 {[%emt 0:00:21]} 20. Qe3 {[%emt 0:01:14]} Ng6 {[%emt 0:02:25]} 21. Rd1 {[%emt 0:00:51]} Qc7 {[%emt 0:14:19]} 22. Bf3 {[%emt 0:03:38]} (22. g3 $14) 22... Bxf3 {[%emt 0:01:52]} 23. Qxf3 {[%emt 0:00:09]} Rfd8 {[%emt 0:00:42]} 24. g3 {[%emt 0:01:48]} Rd7 {[%emt 0:03:32]} 25. Qe2 {[%emt 0:02:38][%cal Oc4c5] Black should prevent c5!} Qd8 {[%emt 0:01:01]} 26. d5 {[%emt 0:01:18]} exd5 {[%emt 0:07:50]} 27. Nxd5 {[%emt 0:00:15]} Kf8 {[%emt 0:01:22]} 28. Raa1 {[%emt 0:00:30]} Ne7 {[%emt 0:00:57][%cal Re7d5] [#]} 29. Ne3 {[%emt 0:02:15] White is much more active.} Rcc7 {[%emt 0:01:29]} 30. Qg4 {[%emt 0:00:19][%cal Oc4c5]} g6 {[%emt 0:01:16]} 31. h4 {[%emt 0:00:33]} Qc8 {[%emt 0:01:06]} (31... Ng8 $16) 32. Qf4 $18 {[%emt 0:01:03] Qh6+ is the strong threat.} Kg7 {[%emt 0:02:01] Prevents Qh6+.} 33. Rd4 {[%emt 0:00:47][%cal Oh4h5]} ({Don't do} 33. Rxd7 $6 Rxd7 34. Ng4 Ng8 $16) 33... Rc5 $2 {[%emt 0:00:36]} (33... h5 {is a better defense.} 34. Rad1 Rb7) 34. Rad1 {[%emt 0:00:48]} Rxd4 {[%emt 0:00:27]} 35. Qxd4+ {[%emt 0:00:17]} f6 {[%emt 0:00:28] [#]} 36. Qd6 {[%emt 0:00:36]} (36. Qf4 $1 $18) 36... Qc7 $16 {[%emt 0:00:17]} 37. Qe6 {[%emt 0:00:39]} Re5 {[%emt 0:00:14]} 38. Rd7 {[%emt 0:00:31] Hoping for Qc6.} Rxe6 {[%emt 0:00:17]} 39. Rxc7 $14 {[%emt 0:00:05][%mdl 4096] Endgame Black must now prevent c5. KRN-KRN} Kf8 {[%emt 0:00:30]} 40. Kg2 {[%emt 0:00:51]} Ke8 $1 {[%emt 0:01:11]} 41. c5 {[%emt 0:07:28] Strongly threatening c6.} bxc5 {[%emt 0:02:11]} 42. Nc4 {[%emt 0:01:21]} Kd8 {[%emt 0:11:40]} 43. Rxc5 {[%emt 0:11:40]} (43. Ra7 $5 {[%cal Rb5b6]}) 43... a4 {[%emt 0:02:28] The position is equal.} 44. b6 {[%emt 0:08:34] And now b7 would win.} Rc6 {[%emt 0:00:49]} 45. b7 $1 {[%emt 0:00:23]} Kc7 {[%emt 0:00:10]} 46. Rb5 {[%emt 0:00:18]} Kb8 {[%emt 0:00:22]} 47. Nb6 {[%emt 0:01:36] Nd7+ would kill now.} Kxb7 {[%emt 0:03:10]} 48. Nxa4+ {[%emt 0:00:23] Black escapes into a draw.  Weighted Error Value: White=0.16 (very precise) /Black=0.15 (very precise)} 1/2-1/2